bitfinex/quotes_ETHUSD_20240827
["timestamp","ask_amount","ask_price","bid_price","bid_amount"]
[1724741278043,1.15270862,2685.0,2684.5,2.4201]
[1724741278254,1.15270862,2685.0,2684.6,2.60737]
[1724741278409,1.15270862,2685.0,2684.6,3.370881]
[1724741278605,1.15270862,2685.0,2684.6,3.44537087]
[1724741278836,1.15270862,2685.0,2684.6,3.370881]
[1724741279006,4.15302335,2684.9,2684.2,2.60782]
[1724741279208,3.53050862,2684.8,2684.2,2.60782]
[1724741279745,3.53050862,2684.8,2684.3,2.60773]
[1724741279951,1.15270862,2684.9,2684.4,2.60765]
[1724741280329,1.15270862,2684.9,2684.5,2.60753]
[1724741280555,1.15270862,2685.0,2684.7,2.4201]
[1724741280756,1.15270862,2685.1,2684.5,2.60753]
[1724741281051,1.15270862,2685.0,2684.6,2.60745]
[1724741282063,1.15270862,2685.0,2684.7,2.60736]
[1724741282064,1.15270862,2684.9,2684.7,2.60736]
[1724741282348,1.15270862,2685.0,2684.5,2.60755]
[1724741282551,1.15270862,2684.9,2684.6,2.60744]
[1724741282726,1.15270862,2685.0,2684.6,2.60744]
[1724741283046,1.15270862,2685.0,2684.7,2.68181933]
[1724741283255,1.15270862,2685.1,2684.7,2.68181933]
[1724741283621,1.15270862,2685.1,2684.8,2.60726]
[1724741284054,1.15270862,2685.1,2684.7,2.60734]
[1724741284351,1.53694482,2685.3,2684.8,2.867994]
[1724741284352,1.15270862,2685.3,2684.8,2.867994]
[1724741284514,1.15270862,2685.3,2685.0,2.607]
[1724741284945,1.15270862,2685.4,2685.0,2.607]
[1724741285247,1.15270862,2685.5,2685.1,2.60697]
[1724741286281,8.43270862,2685.6,2685.1,2.60697]
[1724741286980,1.15270862,2685.5,2685.1,2.60697]
[1724741287287,7.28,2685.6,2685.1,2.60697]
[1724741287288,8.43270862,2685.6,2685.1,2.60697]
[1724741288360,7.28,2685.6,2685.1,2.60697]
[1724741288762,8.43270862,2685.6,2685.1,2.60697]
[1724741289083,7.28,2685.6,2685.1,2.60697]
[1724741289290,3.46640862,2685.7,2685.1,2.60697]
[1724741289854,1.15270862,2685.7,2685.2,2.60687]
[1724741290053,1.53694482,2685.8,2685.2,2.60687]
[1724741290054,1.15270862,2685.8,2685.2,2.60687]
[1724741290560,13.35260862,2685.9,2685.2,2.60687]
[1724741291154,1.15270862,2685.8,2685.2,2.60687]
[1724741291488,13.35260862,2685.9,2685.2,2.60687]
[1724741291791,10.74640862,2685.9,2685.3,2.60675]
[1724741292182,8.43270862,2685.9,2685.4,2.60665]
[1724741293173,4.92003,2685.8,2685.0,2.60704]
[1724741293377,4.92003,2685.8,2684.7,2.60727]
[1724741293378,3.00031473,2685.2,2684.7,2.60727]
[1724741294492,3.00031473,2685.0,2684.3,2.60771]
[1724741294690,3.00031473,2685.0,2684.1,2.60791]
[1724741294691,3.00031473,2684.6,2684.1,2.60791]
[1724741294893,3.00031473,2684.6,2684.2,2.60784]
[1724741295078,6.46672335,2684.8,2684.2,2.60784]
[1724741295401,6.46672335,2684.8,2684.0,2.60804]
[1724741295703,3.00031473,2684.6,2684.0,2.60804]
[1724741296434,1.15270862,2684.8,2684.2,2.4917]
[1724741296710,1.92427824,2685.1,2684.5,2.60747]
[1724741296711,1.15270862,2685.1,2684.5,2.60747]
[1724741296865,4.15270862,2685.1,2684.5,2.60747]
[1724741298365,7.28,2685.2,2684.6,2.3117]
[1724741299404,7.28,2685.2,2684.7,2.60728]
[1724741301125,7.28,2685.2,2684.6,2.38619054]
[1724741301327,8.43270862,2685.2,2684.6,2.3117]
[1724741301480,8.43270862,2685.2,2684.7,2.60728]
[1724741301817,3.58540862,2685.1,2684.3,4.91943]
[1724741301983,6.19239862,2685.1,2684.4,2.60763]
[1724741302396,1.15270862,2685.0,2684.4,2.60763]
[1724741303118,1.15270862,2685.0,2684.3,2.60773]
[1724741303277,0.00789449,2684.9,2684.6,2.60745]
[1724741303717,0.00789449,2684.9,2684.5,2.60755]
[1724741304065,0.00789449,2684.7,2684.1,2.60791]
[1724741304929,0.00789449,2684.7,2683.9,4.91981]
[1724741304930,0.00789449,2684.7,2684.2,2.60783]
[1724741305131,0.00789449,2684.6,2684.2,2.60783]
[1724741307772,0.00789449,2684.6,2684.3,2.60774]
[1724741311181,0.00789449,2684.6,2684.5,2.60756]
[1724741312085,1.15270862,2684.9,2684.8,2.60727]
[1724741312247,0.00789449,2685.0,2684.9,2.60717]
[1724741313014,0.00789449,2685.3,2685.1,2.60695]
[1724741313153,1.15270862,2685.4,2685.2,5.21376]
[1724741313495,1.16060311,2685.5,2685.2,2.60688]
[1724741313714,1.15270862,2685.5,2685.0,2.60705]
[1724741313847,1.15270862,2685.4,2684.8,4.87283]
[1724741314050,1.15270862,2685.3,2684.8,3.355258]
[1724741314497,1.15270862,2685.3,2684.9,2.60716]
[1724741314677,1.15270862,2685.3,2684.8,3.355258]
[1724741314986,1.15270862,2685.3,2684.6,4.87304]
[1724741314987,1.15270862,2685.0,2684.6,2.60744]
[1724741315161,1.15270862,2684.9,2684.7,2.60735]
[1724741315358,1.15270862,2685.0,2684.7,2.60735]
[1724741315562,1.15270862,2685.0,2684.6,2.60744]
[1724741315765,1.15270862,2685.0,2684.7,2.60732]
[1724741315973,1.15270862,2685.1,2684.7,2.60732]
[1724741316501,1.15270862,2685.2,2685.0,2.60706]
[1724741316708,1.15270862,2685.2,2684.7,2.2656]
[1724741316709,1.15270862,2685.3,2685.1,5.21394]
[1724741316893,1.15270862,2685.4,2685.1,2.60695]
[1724741317201,1.15270862,2685.3,2685.1,2.60695]
[1724741318284,1.15270862,2685.3,2685.1,3.128359]
[1724741319885,1.15270862,2685.4,2685.1,3.128359]
[1724741320222,1.15270862,2685.3,2685.1,3.128359]
[1724741321896,1.15270862,2685.3,2685.1,5.393959]
[1724741322612,1.15270862,2685.4,2685.1,5.393959]
[1724741322984,1.15270862,2685.3,2685.1,5.393959]
[1724741323189,1.53694482,2685.5,2685.1,5.393959]
[1724741323190,1.15270862,2685.4,2685.1,5.393959]
[1724741323404,1.15270862,2685.4,2685.2,2.60687]
[1724741323578,1.15270862,2685.4,2685.2,2.68134492]
[1724741323910,1.15270862,2685.5,2685.2,3.48887531]
[1724741324885,1.15270862,2685.4,2685.2,3.41440039]
[1724741325077,1.15270862,2685.3,2685.2,2.60687]
[1724741325285,1.15270862,2685.3,2685.0,2.60701]
[1724741325796,1.15270862,2685.3,2684.9,4.87274]
[1724741325998,1.15270862,2685.2,2684.9,2.60714]
[1724741326751,1.15270862,2685.1,2684.8,2.60726]
[1724741327310,1.15270862,2685.1,2684.9,2.60716]
[1724741327805,1.15270862,2685.1,2684.7,2.60734]
[1724741328040,1.15270862,2685.0,2684.7,2.60734]
[1724741328258,1.15270862,2684.9,2684.8,2.60727]
[1724741328418,1.15270862,2685.0,2684.8,2.60727]
[1724741328822,1.15270862,2685.0,2684.7,2.60734]
[1724741329007,1.15270862,2684.9,2684.7,2.60734]
[1724741329210,1.15270862,2684.9,2684.7,5.21462]
[1724741329464,1.53694482,2685.1,2684.8,2.60725]
[1724741329465,1.15270862,2685.0,2684.8,2.60725]
[1724741329642,1.15270862,2685.0,2684.7,2.60728]
[1724741330048,1.15270862,2685.0,2684.7,3.128762]
[1724741330243,1.15270862,2685.1,2684.9,2.60717]
[1724741331965,1.15270862,2685.2,2685.0,2.60707]
[1724741332111,1.53694482,2685.3,2685.0,2.60707]
[1724741332112,1.15270862,2685.1,2685.0,2.60707]
[1724741333235,1.15270862,2685.1,2684.9,2.60717]
[1724741333559,1.15270862,2685.1,2684.7,4.8729]
[1724741333778,1.15270862,2685.0,2684.7,4.87288]
[1724741334375,1.15270862,2685.0,2684.7,5.360168]
[1724741335075,1.15270862,2685.0,2684.8,2.60723]
[1724741335283,1.15270862,2685.1,2684.8,2.60723]
[1724741335578,1.15270862,2685.0,2684.7,2.60728]
[1724741335876,1.15270862,2684.9,2684.7,2.60728]
[1724741336179,1.15270862,2685.0,2684.7,2.60728]
[1724741338613,1.15270862,2685.0,2684.1,6.00031473]
[1724741338614,1.15270862,2684.8,2684.1,2.60788]
[1724741338741,2.60724,2684.9,2684.1,2.60788]
[1724741338742,1.15800459,2684.4,2684.1,2.60788]
[1724741338946,1.15800459,2684.4,2683.9,2.60811]
[1724741338947,1.15800459,2684.2,2683.9,2.60811]
[1724741339250,1.15800459,2684.3,2684.1,2.60794]
[1724741339554,1.15800459,2684.3,2684.0,2.60804]
[1724741339756,1.15800459,2684.2,2684.0,2.60804]
[1724741340252,1.15800459,2684.3,2684.1,2.60795]
[1724741340465,1.15800459,2684.3,2684.2,2.60785]
[1724741340794,1.15800459,2684.4,2684.3,2.60775]
[1724741341153,1.15800459,2684.5,2684.4,2.60765]
[1724741342264,1.92976292,2684.7,2684.6,2.60746]
[1724741342265,1.15800459,2684.7,2684.6,2.60746]
[1724741342556,1.15814866,2684.7,2684.6,2.60746]
[1724741342706,1.54400612,2684.7,2684.4,2.60765]
[1724741343042,1.15815053,2684.6,2684.5,2.60756]
[1724741343404,1.15815053,2684.7,2684.5,2.60756]
[1724741343604,1.15815053,2684.6,2684.2,2.60782]
[1724741343920,1.15815053,2684.6,2684.3,2.60775]
[1724741344102,1.15815053,2684.5,2684.3,2.60775]
[1724741344734,1.15815053,2684.6,2684.3,2.60775]
[1724741345626,1.15815053,2684.5,2684.3,2.60775]
[1724741346646,1.15815053,2684.5,2684.1,2.60791]
[1724741346808,1.15815053,2684.6,2684.2,0.260791]
[1724741347008,1.15815053,2684.6,2684.3,2.60775]
[1724741347226,1.15815053,2684.6,2684.4,2.60759]
[1724741347503,1.54400612,2684.7,2684.4,2.60759]
[1724741347504,1.15815053,2684.7,2684.4,2.60759]
[1724741348048,1.15815053,2684.6,2684.4,2.60759]
[1724741348227,1.15815053,2684.6,2684.5,2.60756]
[1724741349734,1.15815053,2684.7,2684.5,2.60756]
[1724741349908,1.15815053,2684.6,2684.5,2.60756]
[1724741350109,1.15815053,2684.7,2684.5,2.60756]
[1724741350543,1.15815053,2684.7,2684.3,5.04355]
[1724741350715,1.15815053,2684.5,2684.3,2.60775]
[1724741350921,1.15815053,2684.5,2684.1,2.60792]
[1724741351129,3.53715053,2684.4,2684.1,2.60792]
[1724741351309,1.15815053,2684.3,2684.1,2.60792]
[1724741351504,1.15815053,2684.2,2684.1,2.60792]
[1724741351704,1.15815053,2684.2,2683.9,2.6081]
[1724741351910,1.15815053,2684.1,2683.9,2.6081]
[1724741352109,1.15815053,2684.2,2683.9,2.6081]
[1724741353128,1.54400612,2684.3,2683.7,2.60831]
[1724741353129,1.15815053,2684.1,2683.7,2.60831]
[1724741353748,1.15815053,2684.0,2683.7,2.60831]
[1724741354116,1.15815053,2684.1,2683.7,2.60831]
[1724741354315,1.15815053,2684.1,2683.8,2.60823]
[1724741356597,1.15815053,2684.1,2683.6,2.60842]
[1724741356899,1.15815053,2683.9,2683.6,2.60842]
[1724741357601,1.15815053,2683.9,2683.5,2.60852]
[1724741357804,3.53715053,2684.0,2683.6,2.6084]
[1724741358081,1.15815053,2683.9,2683.6,2.6084]
[1724741358255,3.53715053,2684.0,2683.6,2.6084]
[1724741359056,0.38967189,2683.9,2683.6,2.6084]
[1724741361687,0.38967189,2683.9,2683.4,2.60859]
[1724741361882,1.54782242,2683.9,2683.4,2.60859]
[1724741362580,1.70995541,2684.0,2683.6,2.60841]
[1724741362777,1.15815053,2684.1,2683.6,2.60841]
[1724741362976,1.5478068,2684.1,2683.6,2.60841]
[1724741365808,0.38965627,2684.1,2683.8,2.60822]
[1724741366181,0.38965627,2684.1,2683.8,3.129883]
[1724741366522,7.28,2684.4,2684.0,4.94604]
[1724741366731,1.15815053,2684.5,2684.0,4.94604]
[1724741367441,1.15815053,2684.5,2684.1,2.60794]
[1724741367590,3.8471909,2684.6,2684.1,2.60794]
[1724741368220,1.5477909,2684.6,2684.3,2.60766]
[1724741368438,0.38964037,2684.6,2684.4,0.260766]
[1724741368595,0.38964037,2684.6,2684.3,2.60766]
[1724741368996,0.38964037,2684.6,2683.9,2.60811]
[1724741368997,2.2994,2684.5,2683.9,2.60811]
[1724741369225,1.15815053,2684.4,2683.9,2.60811]
[1724741369420,1.15815053,2684.4,2684.0,2.60804]
[1724741369639,3.45755053,2684.5,2684.0,2.60804]
[1724741370018,1.15815053,2684.4,2684.0,2.60804]
[1724741370234,1.15815053,2684.4,2684.0,0.260804]
[1724741370385,1.15815053,2684.3,2684.0,0.260804]
[1724741371052,1.15815053,2684.4,2684.0,0.260804]
[1724741371342,1.15815053,2684.3,2684.0,0.260804]
[1724741371490,1.15815053,2684.4,2684.0,2.868824]
[1724741371690,1.15815053,2684.3,2684.0,0.260804]
[1724741371927,1.15815053,2684.3,2684.0,2.868834]
[1724741372251,1.15815053,2684.4,2684.1,0.5476974]
[1724741372407,1.15815053,2684.4,2684.1,3.1556374]
[1724741372614,1.93364649,2684.6,2684.1,3.1556374]
[1724741372615,1.15815053,2684.5,2684.1,3.1556374]
[1724741373514,1.16604502,2684.4,2684.1,3.1556374]
[1724741373843,1.16604502,2684.4,2684.2,0.34164414]
[1724741374199,0.00789449,2684.4,2684.2,0.34164414]
[1724741374431,0.00789449,2684.4,2684.2,2.94949414]
[1724741375300,0.00789449,2684.4,2684.2,0.34164414]
[1724741376000,0.00789449,2684.4,2684.3,2.60775]
[1724741376229,0.00789449,2684.4,2684.3,3.45633315]
[1724741376840,0.00789449,2684.4,2684.3,0.84858315]
[1724741377194,1.16604502,2684.4,2684.3,0.84858315]
[1724741377702,0.00789449,2684.4,2684.3,0.84858315]
[1724741378306,3.55074502,2684.4,2684.1,2.60788]
[1724741378514,1.15815053,2684.3,2684.1,2.60788]
[1724741379533,1.55190061,2684.4,2684.2,2.60785]
[1724741379534,1.16604502,2684.4,2684.2,2.60785]
[1724741379733,0.00789449,2684.4,2684.2,2.60785]
[1724741379934,0.00789449,2684.4,2684.3,0.521573]
[1724741380296,1.16604502,2684.4,2684.3,0.521573]
[1724741380911,0.00789449,2684.4,2684.3,0.521573]
[1724741381115,1.16604502,2684.4,2684.3,0.521573]
[1724741382522,0.00789449,2684.3,2683.9,2.60811]
[1724741382781,0.00789449,2684.3,2683.7,2.60831]
[1724741382782,1.15881879,2684.0,2683.7,2.60831]
[1724741382983,1.15881879,2684.2,2683.9,2.60814]
[1724741383270,1.15881879,2684.1,2683.9,3.129785]
[1724741384654,1.54400612,2684.2,2683.9,3.129785]
[1724741384655,1.15881879,2684.0,2683.9,3.129785]
[1724741386135,1.15881879,2684.1,2684.0,2.60804]
[1724741387762,1.15881879,2684.2,2684.0,2.60804]
[1724741387933,1.15881879,2684.2,2684.1,0.5510485]
[1724741388346,1.15881879,2684.2,2684.1,3.1589985]
[1724741388545,1.15881879,2684.3,2684.2,2.60785]
[1724741389459,1.54400612,2684.4,2684.2,2.60785]
[1724741389867,1.54400612,2684.3,2684.0,2.60797]
[1724741390064,1.15954951,2684.1,2684.0,3.1590115]
[1724741392365,1.93246069,2684.4,2684.1,2.60795]
[1724741392366,1.15954951,2684.2,2684.1,2.60795]
[1724741395068,1.15872666,2684.2,2684.1,2.60795]
[1724741395274,1.15872666,2684.2,2684.1,3.47489165]
[1724741396573,1.54400612,2684.3,2684.1,3.47489165]
[1724741396950,1.15921913,2684.2,2684.1,3.47489165]
[1724741397548,1.15921913,2684.3,2684.2,2.60785]
[1724741397756,1.93246069,2684.5,2684.3,2.3808]
[1724741397757,1.54400612,2684.5,2684.3,2.3808]
[1724741398085,1.15942839,2684.5,2684.4,5.2153]
[1724741398256,1.54400612,2684.6,2684.4,5.2153]
[1724741398257,1.15942839,2684.6,2684.5,2.60756]
[1724741398458,1.15942839,2684.6,2684.5,2.68205346]
[1724741398660,1.15942839,2684.6,2684.5,3.44910381]
[1724741398859,1.15942839,2684.6,2684.5,3.27626468]
[1724741400788,1.15942839,2684.6,2684.5,5.88382468]
[1724741401084,1.15906187,2684.7,2684.6,2.60746]
[1724741401285,1.15906187,2684.8,2684.7,2.60736]
[1724741401866,1.15906187,2685.0,2684.7,2.3808]
[1724741402185,1.15906187,2685.1,2684.9,2.60708]
[1724741403192,1.15906187,2685.0,2684.8,2.60727]
[1724741403362,1.15906187,2685.0,2684.8,5.21446]
[1724741403770,1.15906187,2685.0,2684.9,2.60717]
[1724741404065,1.15906187,2685.0,2684.8,2.60719]
[1724741404389,1.54400612,2685.0,2684.6,2.6074]
[1724741404602,1.15792662,2684.8,2684.6,2.6074]
[1724741406021,1.15792662,2684.7,2684.6,2.6074]
[1724741406225,1.15792662,2684.8,2684.6,2.6074]
[1724741406433,1.15792662,2684.8,2684.7,2.60736]
[1724741407314,1.15792662,2684.9,2684.8,2.60727]
[1724741408105,1.15792662,2685.0,2684.8,2.60727]
[1724741408270,1.15792662,2685.0,2684.9,2.60717]
[1724741409843,1.15792662,2685.1,2685.0,4.88357]
[1724741410125,1.15792662,2685.2,2685.0,4.88357]
[1724741410289,1.15792662,2685.2,2685.1,2.60697]
[1724741410494,1.15792662,2685.2,2685.0,2.60707]
[1724741411109,1.15792662,2685.2,2685.1,2.60697]
[1724741411268,1.15792662,2685.3,2685.1,2.60697]
[1724741412124,1.15792662,2685.3,2685.1,2.68144682]
[1724741412273,1.15792662,2685.3,2685.1,2.60697]
[1724741412469,3.60272662,2685.3,2684.8,2.60724]
[1724741412674,1.15792662,2685.0,2684.8,2.60724]
[1724741413135,1.15792662,2685.1,2684.9,2.60717]
[1724741414430,1.15792662,2685.2,2684.9,2.60717]
[1724741414813,1.15792662,2685.1,2684.9,2.60717]
[1724741414974,1.15792662,2685.2,2684.9,2.60717]
[1724741417080,1.15792662,2685.1,2684.8,2.60724]
[1724741417400,1.15792662,2685.1,2684.8,2.6072]
[1724741417581,3.98880612,2685.3,2684.9,2.6071]
[1724741417582,1.15792662,2685.2,2684.9,2.6071]
[1724741419030,1.15792662,2685.1,2684.9,2.6071]
[1724741419444,1.15792662,2685.1,2684.8,2.6072]
[1724741419748,1.15792662,2685.0,2684.7,2.60729]
[1724741421030,1.15792662,2685.0,2684.8,2.60726]
[1724741421537,1.15792662,2685.0,2684.9,2.60717]
[1724741421733,1.54400612,2685.2,2684.9,2.60717]
[1724741421734,1.15792662,2685.1,2684.9,2.60717]
[1724741422534,1.54400612,2685.1,2685.0,2.60707]
[1724741423941,1.54400612,2685.1,2684.7,2.4145]
[1724741423942,3.95162596,2685.1,2684.7,2.60735]
[1724741424173,1.15721171,2684.9,2684.7,2.60735]
[1724741425695,2.40869449,2684.7,2684.2,2.6078]
[1724741425826,1.15707041,2684.4,2684.1,2.60794]
[1724741426022,1.15707041,2684.5,2684.2,2.60776]
[1724741426270,1.15707041,2684.5,2684.4,2.60765]
[1724741426479,1.15707041,2684.7,2684.5,2.60756]
[1724741427134,1.15707041,2684.7,2684.6,2.60746]
[1724741427333,1.15707041,2684.8,2684.6,2.60746]
[1724741428457,1.15707041,2684.8,2684.4,5.02215]
[1724741428854,1.15707041,2684.8,2684.4,5.785146]
[1724741429122,1.54672884,2684.9,2684.7,2.60729]
[1724741429308,1.15707041,2685.0,2684.7,2.68177769]
[1724741430316,1.15707041,2685.0,2684.8,2.60724]
[1724741432226,1.15707041,2685.0,2684.6,2.6074]
[1724741432227,1.15707041,2684.9,2684.6,2.6074]
[1724741432362,1.1583078,2684.8,2684.6,2.6074]
[1724741432867,1.1583078,2684.8,2684.6,2.505307]
[1724741433315,1.1583078,2684.8,2684.7,2.60736]
[1724741433622,1.54276055,2685.0,2684.7,2.60736]
[1724741433623,1.1583078,2684.9,2684.7,2.60736]
[1724741434514,1.1583078,2684.9,2684.8,2.60727]
[1724741438134,1.54276055,2685.0,2684.8,2.60727]
[1724741438833,1.15954395,2684.9,2684.8,2.60727]
[1724741439635,1.54276055,2685.0,2684.8,2.60727]
[1724741439841,1.15974124,2684.9,2684.8,2.60727]
[1724741440337,1.54276055,2685.0,2684.9,2.60717]
[1724741442200,1.93287789,2685.0,2684.9,2.60717]
[1724741442403,1.93287789,2685.0,2684.7,2.6073]
[1724741442606,1.54740651,2684.8,2684.7,2.6073]
[1724741442878,1.54740651,2684.8,2684.5,2.60755]
[1724741443166,1.1605507,2684.6,2684.5,2.60755]
[1724741443307,1.1605507,2684.7,2684.6,2.60746]
[1724741443926,1.1605507,2684.7,2684.6,5.21492]
[1724741444208,1.1605507,2684.8,2684.7,2.60736]
[1724741444955,1.54740094,2684.9,2684.8,2.60727]
[1724741450198,1.93502224,2685.0,2684.8,2.60727]
[1724741450378,2.32992118,2685.2,2684.8,2.60727]
[1724741450379,1.93502224,2684.9,2684.8,2.60727]
[1724741450583,1.54799451,2684.9,2684.8,2.60727]
[1724741450764,1.93502224,2684.9,2684.8,2.60727]
[1724741451086,1.54799747,2684.9,2684.8,2.60727]
[1724741453804,1.54799747,2684.9,2684.8,5.71696436]
[1724741453805,1.16116826,2684.9,2684.8,5.71696436]
[1724741454411,1.16116826,2685.0,2684.9,5.21434]
[1724741454734,1.16116826,2685.0,2684.9,7.59224]
[1724741454850,1.16116826,2685.1,2685.0,5.21414]
[1724741455248,1.54799747,2685.2,2685.1,2.60697]
[1724741455451,1.93520037,2685.3,2685.0,2.60707]
[1724741455762,1.54810846,2685.1,2684.8,2.60723]
[1724741455947,1.54800114,2684.9,2684.8,2.60723]
[1724741456147,1.54800114,2685.0,2684.8,5.735896]
[1724741456451,1.16103341,2684.9,2684.8,5.735896]
[1724741456762,1.54800114,2685.0,2684.8,3.128666]
[1724741456964,1.54800114,2684.9,2684.8,2.6072]
[1724741458102,1.16100854,2684.9,2684.8,5.21438]
[1724741459603,1.16100854,2684.9,2684.8,7.59228]
[1724741459752,1.16100854,2685.0,2684.9,5.21434]
[1724741460493,1.54800114,2685.0,2684.9,2.60717]
[1724741460693,1.54800114,2685.0,2684.9,3.1556597]
[1724741460887,1.54800114,2685.0,2684.9,5.7628297]
[1724741461823,1.54800114,2685.0,2684.9,8.1407297]
[1724741462025,1.16118824,2685.0,2684.9,8.1407297]
[1724741462376,1.54800114,2685.2,2685.0,5.21414]
[1724741462377,1.16118824,2685.1,2685.0,5.21414]
[1724741462609,1.16118824,2685.1,2685.0,6.41379891]
[1724741463183,1.16118824,2685.2,2685.1,5.21394]
[1724741464780,1.16118824,2685.3,2685.2,2.60688]
[1724741464980,1.16118824,2685.3,2685.2,3.37311383]
[1724741467006,1.16118824,2685.4,2685.2,6.95874319]
[1724741467209,1.93552103,2685.6,2685.2,6.95874319]
[1724741467210,1.16118824,2685.7,2685.6,2.60649]
[1724741467410,1.54800114,2685.8,2685.6,2.00382636]
[1724741467411,1.16118824,2685.8,2685.6,2.00382636]
[1724741467587,1.54800114,2685.9,2685.6,2.00382636]
[1724741467588,1.16118824,2685.9,2685.6,2.00382636]
[1724741467793,1.16118824,2685.9,2685.7,0.07445891]
[1724741468120,1.15963474,2685.9,2685.8,2.60629]
[1724741469271,1.15963474,2686.0,2685.9,2.6062]
[1724741471353,1.15963474,2686.1,2685.9,2.6062]
[1724741471848,1.15963474,2686.1,2686.0,2.6061]
[1724741472208,1.54800114,2686.2,2686.0,2.6061]
[1724741472391,1.15825145,2686.1,2686.0,2.6061]
[1724741472743,1.15825145,2686.1,2685.9,2.6062]
[1724741472949,1.15825145,2686.1,2686.0,2.6061]
[1724741473106,1.15825145,2686.2,2686.0,2.6061]
[1724741473289,1.15825145,2686.2,2686.1,2.606]
[1724741475053,1.15807763,2686.2,2686.1,2.606]
[1724741475355,1.15807763,2686.3,2686.2,2.60591]
[1724741475488,1.15807763,2686.4,2686.2,2.60591]
[1724741476000,4.28221985,2686.5,2686.2,2.60591]
[1724741476001,3.89229634,2686.5,2686.3,2.60581]
[1724741476426,3.89229634,2686.5,2686.2,2.60591]
[1724741476714,3.89229634,2686.5,2686.3,2.6058]
[1724741477119,0.38961871,2686.5,2686.2,2.60591]
[1724741477437,1.15807763,2686.6,2686.2,2.60591]
[1724741477438,1.15807763,2686.6,2686.4,2.60571]
[1724741478155,3.50267763,2686.7,2686.4,2.60571]
[1724741481131,2.3446,2686.7,2686.4,2.60571]
[1724741481338,3.50267763,2686.7,2686.4,2.60571]
[1724741482072,1.54771608,2686.8,2686.4,2.60571]
[1724741483224,0.39753294,2686.8,2686.4,2.60571]
[1724741483423,0.39753294,2686.8,2686.4,3.49981494]
[1724741483678,0.39753294,2686.8,2686.4,4.7486443]
[1724741484290,0.39753294,2686.8,2686.6,1.24882936]
[1724741484430,0.00789449,2686.8,2686.6,3.85432936]
[1724741484628,0.00789449,2687.0,2686.7,0.39287692]
[1724741484955,0.00789449,2687.0,2686.6,3.85432936]
[1724741487449,0.00789449,2687.0,2686.6,6.33492936]
[1724741487774,0.00789449,2687.0,2686.7,2.60541]
[1724741488128,0.00789449,2687.0,2686.8,2.6053]
[1724741490674,0.00789449,2687.0,2686.6,5.0861]
[1724741490675,2.2766,2686.9,2686.6,2.60545]
[1724741490973,2.2766,2686.9,2686.6,5.2109]
[1724741491687,2.2766,2686.9,2686.7,2.60539]
[1724741491854,0.00789449,2687.0,2686.7,3.06229843]
[1724741492057,0.00789449,2687.0,2686.8,2.60532]
[1724741492756,0.00789449,2687.0,2686.7,0.45690843]
[1724741492956,0.00789449,2687.0,2686.7,3.06227843]
[1724741495443,0.00789449,2687.0,2686.8,2.60532]
[1724741497287,0.00789449,2687.0,2686.9,2.60523]
[1724741497671,0.00789449,2687.0,2686.8,3.29696978]
[1724741498487,0.00789449,2687.0,2686.9,2.60523]
[1724741499087,0.00789449,2687.0,2686.6,3.54272936]
[1724741499088,0.00789449,2687.0,2686.6,2.60549]
[1724741499331,2.4812,2686.9,2686.6,2.60549]
[1724741500792,2.4812,2686.9,2686.6,2.60545]
[1724741501802,2.4812,2686.9,2686.6,5.2109]
[1724741502089,2.4812,2686.9,2686.6,2.60545]
[1724741502267,2.4812,2686.9,2686.4,2.60568]
[1724741502268,1.24882936,2686.8,2686.4,2.60564]
[1724741504983,1.24882936,2686.8,2686.5,2.60561]
[1724741507713,4.01307001,2686.9,2686.6,2.6055]
[1724741507885,3.63927763,2686.9,2686.6,2.6055]
[1724741508511,3.63927763,2686.9,2686.6,2.60549]
[1724741509073,1.15807763,2686.8,2686.6,2.60549]
[1724741510212,1.15807763,2686.7,2686.6,2.60549]
[1724741511286,3.73002936,2686.7,2685.1,4.7054643]
[1724741511489,3.73002936,2686.7,2684.7,1.94922381]
[1724741511490,1.24882936,2686.1,2685.8,2.60626]
[1724741511696,2.40680526,2686.1,2685.9,2.60618]
[1724741512308,2.40680526,2686.1,2686.0,2.6061]
[1724741512704,1.1579759,2686.1,2686.0,2.6061]
[1724741513114,1.54800114,2686.2,2686.1,2.606]
[1724741513115,1.1579759,2686.2,2686.1,2.606]
[1724741514196,1.1579759,2686.2,2686.0,2.60602]
[1724741514427,1.1579759,2686.1,2686.0,2.60602]
[1724741514624,4.02920114,2686.2,2685.8,5.21251]
[1724741514832,1.1585186,2686.0,2685.8,2.60623]
[1724741515619,1.1585186,2686.0,2685.9,2.6062]
[1724741515826,1.1585186,2686.1,2685.9,2.6062]
[1724741515990,1.1585186,2686.0,2685.9,2.6062]
[1724741517723,1.15853966,2686.0,2685.9,2.6062]
[1724741520922,1.54800114,2686.1,2685.9,2.6062]
[1724741521432,1.15821383,2686.0,2685.9,2.6062]
[1724741523705,2.453,2685.9,2685.5,2.60655]
[1724741523889,1.15821383,2685.8,2685.5,2.60655]
[1724741524389,4.00100114,2685.9,2685.5,2.60655]
[1724741524390,3.61121383,2685.9,2685.5,2.60655]
[1724741524814,1.15821383,2685.8,2685.5,2.60655]
[1724741525014,1.15821383,2685.8,2685.6,2.60649]
[1724741525402,3.61121383,2685.9,2685.6,2.60649]
[1724741525608,3.61121383,2685.9,2685.5,2.60655]
[1724741526202,3.61121383,2685.9,2685.6,2.60645]
[1724741526899,1.15821383,2685.9,2685.7,2.6063]
[1724741527127,1.15821383,2686.1,2685.7,2.6063]
[1724741527340,1.15821383,2686.1,2685.8,2.60622]
[1724741528048,4.00100114,2686.2,2685.8,2.60622]
[1724741528049,1.15821383,2686.0,2685.8,2.60622]
[1724741528544,4.00100114,2686.2,2685.7,2.6063]
[1724741528545,1.15821383,2686.1,2685.7,2.6063]
[1724741528758,1.15821383,2686.0,2685.7,2.6063]
[1724741529398,2.453,2685.9,2685.5,2.60656]
[1724741529600,3.61121383,2685.9,2685.5,2.60656]
[1724741533620,2.453,2685.9,2685.5,2.60656]
[1724741533941,3.61121383,2685.9,2685.5,2.60656]
[1724741534238,3.61121383,2685.9,2685.3,2.60678]
[1724741534239,1.15821383,2685.8,2685.3,2.60678]
[1724741535545,1.15821383,2685.7,2685.3,2.60678]
[1724741535846,1.15821383,2685.7,2685.1,2.60691]
[1724741535847,2.453,2685.6,2685.1,2.60691]
[1724741536051,3.70158052,2685.6,2685.1,2.60691]